Cogmind - Beta 16 @@@ ROGUE MODE // 2025.12.13 @ 01:59:25 Player: H3-MLN Result: Destroyed by Y-54 Guardian with Flak Gun Performance ------------- Evolutions (0) 0 Regions Visited (4) 800 Robots Destroyed (16) 80 Value Destroyed (282) 282 Prototype IDs (0) 0 Alien Tech Used (0) 0 Bonus (0) 0 TOTAL SCORE: 1162 Bonus ------- None Cogmind --------- Core Integrity 0/250 Matter 295/300 Energy 122/200 System Corruption 0% Temperature Cool (12) Movement Walking (330) Ox3 Location -7/Recycling Parts ------- > --- POWER (1) -------- Subdweller Power Source > --- PROPULSION (2) --- Myomer Leg > --- UTILITY (2) ------ Huge Storage Unit Subdweller Optics > --- WEAPON (2) ------- Power Maul > --- INVENTORY (25) --- Subdweller Power Source Micro Nuclear Core Light Treads Light Treads Wheel Subdweller Monowheel Subdweller Monowheel Flight Unit Light Humpback High-capacity Matter Pod (172) Machine Analyzer Scrap Shield Scrap Shield Scrap Shield Corruption Screen Subdweller Laser Light Assault Rifle Bore Cannon Grenade Launcher Heavy Rocket Launcher Peak State ------------ > --- POWER ------------ Subdweller Power Source > --- PROPULSION ------- Myomer Leg Myomer Leg > --- UTILITY ---------- Huge Storage Unit Armor Integrity Analyzer > --- WEAPON ----------- Plasma Cannon Bore Cannon > --- INVENTORY -------- Subdweller Power Source Micro Nuclear Core Light Treads Light Treads Wheel Subdweller Monowheel Subdweller Monowheel Flight Unit Light Humpback Machine Analyzer Subdweller Optics Targeting Computer Scrap Shield Scrap Shield Scrap Shield Corruption Screen Subdweller Laser Light Assault Rifle Grenade Launcher Heavy Rocket Launcher Power Maul [Rating: 35] Favorites ----------- Power Subdweller Power Source Engine Subdweller Power Source Propulsion Myomer Leg Treads Light Treads Leg Myomer Leg Utility Huge Storage Unit Device Seismic Detector Storage Huge Storage Unit Processor Armor Integrity Analyzer Protection Scrap Shield Weapon Grenade Launcher Energy Gun Small Laser Energy Cannon Plasma Cannon Ballistic Gun Light Assault Rifle Ballistic Cannon Bore Cannon Launcher Grenade Launcher Impact Weapon Power Maul Slashing Weapon Greatsword Build | -11 -10 -10 -10 -7 ------- Run | Yrd Mat Min Sub Rec Slots Evolved . | . . . . . Power . | . . . . . Propulsion . | . . . . . Utility . | . . . . . Weapon . | . . . . . Parts Attached 22 | 2 5 . 9 6 Power 2 | . . . 2 . Engine 2 | . . . 2 . Core . | . . . . . Reactor . | . . . . . Propulsion 4 | . 2 . 2 . Treads 2 | . 2 . . . Leg 2 | . . . 2 . Wheel . | . . . . . Hover . | . . . . . Flight . | . . . . . Utility 6 | . 1 . 3 2 Device 2 | . 1 . . 1 Storage 1 | . . . 1 . Processor 1 | . . . 1 . Hackware . | . . . . . Protection 2 | . . . 1 1 Artifact . | . . . . . Weapon 10 | 2 2 . 2 4 Energy Gun 3 | 2 . . 1 . Energy Cannon 1 | . . . . 1 Ballistic Gun 1 | . 1 . . . Ballistic Cannon 1 | . . . . 1 Launcher 2 | . 1 . 1 . Special Weapon . | . . . . . Impact Weapon 1 | . . . . 1 Slashing Weapon 1 | . . . . 1 Piercing Weapon . | . . . . . Special Melee Weapon . | . . . . . Unidentified Prototypes . | . . . . . Parts Lost 4 | . . . . 4 Power . | . . . . . Propulsion 1 | . . . . 1 Utility 1 | . . . . 1 Weapon 2 | . . . . 2 Highest Loss Streak 2 | . . . . 2 To Critical Strikes . | . . . . . Average Backups 14 | . 2 4 13 20 Power . | . . . . 1 Propulsion 4 | . . 1 4 6 Utility 5 | . . 1 4 7 Weapon 3 | . 1 2 3 4 Tool/Special . | . . . . . Unused Backups 13 | . . . . 13 Power 1 | . . . . 1 Propulsion 4 | . . . . 4 Utility 7 | . . . . 7 Weapon 1 | . . . . 1 Tool/Special . | . . . . . Average Slot Usage (%) 94 | . 54 71 98 95 Engine 12 | . . . 13 14 Treads 3 | . 13 28 2 . Leg 24 | . . . 25 28 Device 1 | . 12 14 . 2 Storage 12 | . . . 12 14 Processor 11 | . . . 12 9 Energy Gun 5 | . 21 14 3 8 Ballistic Gun 5 | . 2 14 3 9 Launcher 15 | . 4 . 20 . Peak Build Rating 35 | 2 5 5 27 35 Average Rating 23 | 1 3 5 24 28 On Entrance 7 | . 2 5 5 26 Avg Prop Armor Cover (%) 27 | . 27 28 28 . Naked Turns . | . . . . . Heaviest Build 108 | 2 5 3 91 108 Greatest Support 50 | 3 3 3 50 50 Greatest Overweight (x) 2 | . 1 . 1 2 Average Overweight (x) . | . . . . 1 Largest Inventory Capacity 25 | 5 5 5 25 25 Average Capacity 22 | 5 5 5 23 25 Most Carried 25 | . 4 4 22 25 Average Carried 17 | . 2 4 16 24 Final Capacity 25 | 5 5 5 25 25 Final Carried 24 | . 4 4 22 24 Class Distribution -------------------- 83% | Scavenger-Mutant 16% | Mutant Dominant Class ---------------- Mutant | -10/Materials Mutant | -10/Mines Scavenger-Mutant | -10/Subcaves Scavenger-Mutant | -7/Recycling Resources | -11 -10 -10 -10 -7 ----------- Run | Yrd Mat Min Sub Rec Matter Collected 1005 | 135 115 . 421 334 Remotely . | . . . . . Salvage Created 486 | . 83 . 79 324 Parts 25 | . 12 . 4 9 Haulers Intercepted 1 | . 1 . . . Recyclers Shooed 1 | . 1 . . . Parts Field Recycled . | . . . . . Retrieved Matter . | . . . . . Parts Self-Destructed 6 | . . . 6 . Prevented . | . . . . . Parts Restored . | . . . . . Kills | -11 -10 -10 -10 -7 ------- Run | Yrd Mat Min Sub Rec Combat Hostiles Destroyed 9 | . 4 . 4 1 Guns 1 | . . . . 1 AOE 8 | . 4 . 4 . Classes Destroyed 9 | . 4 . 3 2 Builder 2 | . 2 . . . Hauler 1 | . 1 . . . Recycler 2 | . . . . 2 Turret 2 | . . . 2 . Swarmer 6 | . 3 . 3 . Grunt 1 | . 1 . . . Sentry 1 | . . . . 1 Cobbler 1 | . . . 1 . Subdweller 1 | . . . 1 . Best Kill Streak 7 | . 7 . 3 2 Combat Bots Only 4 | . 4 . 3 1 Max Kills in Single Turn 3 | . 3 . 2 1 Gunslinging . | . . . . . Exploded 2 | . 2 . 2 . Melee . | . . . . . Uniques/NPCs Destroyed . | . . . . . Combat | -11 -10 -10 -10 -7 -------- Run | Yrd Mat Min Sub Rec Hostile Shots Fired 216 | . 36 . 48 132 Missed 72 | . 15 . 18 39 Hits 144 | . 21 . 30 93 Projectile 144 | . 21 . 30 93 Critical Strikes 1 | . . . 1 . Damage Taken 1277 | . 269 . 323 685 Core 250 | . 69 . 22 159 Absorbed by Shields . | . . . . . Core Remaining (%) 100 | 100 . . . . Volleys Fired 54 | . 12 . 32 10 Largest 2 | . 2 . 2 2 Hottest 128 | . 80 . 80 128 Shots Fired 89 | . 15 . 57 17 Gun 48 | . 6 . 40 2 Cannon 15 | . . . . 15 Launcher 26 | . 9 . 17 . Special . | . . . . . Kinetic 33 | . . . 21 12 Thermal 30 | . 6 . 19 5 Explosive 26 | . 9 . 17 . Electromagnetic . | . . . . . Robot Hit Streak 6 | . 3 . 6 6 Robot Miss Streak 3 | . 2 . 3 1 Penetration Max 1 | . . . . 1 Secondary Targets . | . . . . . Shots Hit Robots 49 | . 3 . 27 19 Core Hits 39 | . 9 . 24 6 Critical Kills . | . . . . . Critical Parts Destroyed 2 | . . . . 2 Critical Strikes 3 | . . . . 3 Destroy 3 | . . . . 3 Melee Attacks 8 | . . . . 8 Impact 1 | . . . . 1 Slashing 7 | . . . . 7 Piercing . | . . . . . Sneak Attacks 2 | . . . . 2 Combat Hostiles . | . . . . . Follow-up Attacks . | . . . . . Damage Inflicted 2077 | . 449 . 792 836 Guns 322 | . 32 . 274 16 Cannons 234 | . . . . 234 Explosions 935 | . 417 . 518 . Melee 585 | . . . . 585 Ramming 1 | . . . . 1 Kinetic 305 | . . . 134 171 Thermal 251 | . 32 . 140 79 Explosive 935 | . 417 . 518 . Electromagnetic . | . . . . . Impact 33 | . . . . 33 Slashing 552 | . . . . 552 Piercing . | . . . . . Highest Corruption . | . . . . . Average Corruption . | . . . . . Corruption Purged . | . . . . . Corruption Blocked . | . . . . . Overload Shots . | . . . . . Overflow Damage 179 | . 27 . 10 142 Projectiles . | . . . . . Explosions 37 | . 27 . 10 . Melee 142 | . . . . 142 Knockbacks . | . . . . . Impact . | . . . . . Kinetic . | . . . . . Secondary . | . . . . . Self-Inflicted Damage 152 | . 81 . 71 . Shots 6 | . 3 . 3 . Rammed . | . . . . . Targets Rammed 1 | . . . . 1 Kicked 1 | . . . . 1 Crushed . | . . . . . Highest Temperature 386 | . 31 . . 386 Average Temperature 194 | . 11 . . 232 Received Heat Transfer 405 | . 42 . 171 192 Effects 2 | . . . . 2 Energy Bleed 1 | . . . . 1 Matter Decay 1 | . . . . 1 Siege Activations . | . . . . . Martial Activations . | . . . . . Shielding Activations . | . . . . . Robots Disrupted . | . . . . . Combat Hostiles . | . . . . . Robots Corrupted . | . . . . . Combat Hostiles . | . . . . . Parts Fried . | . . . . . Impact Corruptions . | . . . . . Robots Melted . | . . . . . Combat Hostiles . | . . . . . Parts Melted . | . . . . . Heat Transferred 475 | . 75 . 250 150 Parts Sabotaged . | . . . . . Parts Stolen . | . . . . . Parts Stripped . | . . . . . Power Chain Reactions . | . . . . . Alert | -11 -10 -10 -10 -7 ------- Run | Yrd Mat Min Sub Rec Maximum Alert Level . | . . . . . Low Security (%) 100 | 100 100 100 . 100 Level 1 . | . . . . . Level 2 . | . . . . . Level 3 . | . . . . . Level 4 . | . . . . . Level 5 . | . . . . . High Security . | . . . . . Max Security . | . . . . . Peak Influence 162 | . 162 58 . 44 Initial 58 | . . 58 . . Average 21 | . 55 46 . 12 Influence Increases 719 | . 192 . 295 232 Destroy 0b10 Robot/C 200 | . 80 . 100 20 Destroy 0b10 Robot/NC 35 | . 15 . . 20 Destroy Leader 12 | . 12 . . . Successful Hack 58 | . 6 . . 52 Select Force Hacks 120 | . . . . 120 Disable Machine 15 | . . . . 15 Destroy Structure 39 | . 34 . . 5 Lose Combat Pursuer 240 | . 45 . 195 . Influence Decreases 719 | . 40 124 323 232 Entered New Map 110 | . . 94 16 . Time Decay 592 | . 40 30 307 215 Lost Part 17 | . . . . 17 Squads Dispatched . | . . . . . Investigation . | . . . . . Extermination . | . . . . . Reinforcement . | . . . . . Assault . | . . . . . Garrison . | . . . . . Intercept . | . . . . . Searches Triggered . | . . . . . Construction Impeded . | . . . . . Haulers Reinforced . | . . . . . Active Scanning Responses . | . . . . . Cargo Convoy Interrupts . | . . . . . Stealth | -11 -10 -10 -10 -7 --------- Run | Yrd Mat Min Sub Rec Distress Signals 1 | . 1 . . . Communications Jammed . | . . . . . Distress Signals . | . . . . . Times Spotted 27 | . 7 . 17 3 Peak Tracking Total 6 | . 5 . 6 2 Tactical Retreats 6 | . 1 . 5 . Traps | -11 -10 -10 -10 -7 ------- Run | Yrd Mat Min Sub Rec Traps Triggered . | . . . . . Indirectly . | . . . . . Trap Hack Attempts . | . . . . . Triggered . | . . . . . Disarmed . | . . . . . Reprogrammed . | . . . . . Reused . | . . . . . Traps Extracted . | . . . . . Installed 1 | . . . 1 . Triggered . | . . . . . Machines | -11 -10 -10 -10 -7 ---------- Run | Yrd Mat Min Sub Rec Machines Disabled 4 | . . . 3 1 Max in Single Turn 1 | . . . 1 1 Machines Repaired . | . . . . . Machines Dismantled . | . . . . . Machines Sabotaged . | . . . . . Overloaded Fab Kills . | . . . . . Hacking | -11 -10 -10 -10 -7 --------- Run | Yrd Mat Min Sub Rec Machines Accessed 9 | . 2 . . 7 Terminals 5 | . 2 . . 3 Fabricators . | . . . . . Repair Stations . | . . . . . Recycling Units 4 | . . . . 4 Scanalyzers . | . . . . . Garrison Access . | . . . . . Total Hacks 25 | . 5 . . 20 Successful 16 | . 1 . . 15 Failed 9 | . 4 . . 5 Catastrophic 1 | . 1 . . . Database Lockouts . | . . . . . Manual 16 | . 6 . . 10 Terminals 11 | . 5 . . 6 Fabricators . | . . . . . Repair Stations . | . . . . . Recycling Units 14 | . . . . 14 Scanalyzers . | . . . . . Garrison Access . | . . . . . Terminal Hacks 1 | . 1 . . . Zone Layout 1 | . 1 . . . Fabricator Hacks . | . . . . . Repair Station Hacks . | . . . . . Recycling Unit Hacks 8 | . . . . 8 Report Inventory 4 | . . . . 4 Retrieve Components 4 | . . . . 4 Scanalyzer . | . . . . . Garrison Access Hacks . | . . . . . Unauthorized Hacks 7 | . . . . 7 Terminals 3 | . . . . 3 Botnet 1 | . . . . 1 Skim 2 | . . . . 2 Fabricators . | . . . . . Repair Stations . | . . . . . Recycling Units 4 | . . . . 4 Tunnel 4 | . . . . 4 Scanalyzers . | . . . . . Garrison Access . | . . . . . Data Cores Recovered . | . . . . . Used . | . . . . . Hacking Detections 6 | . 2 . . 4 Full Trace Events . | . . . . . Feedback Events . | . . . . . Feedback Blocked . | . . . . . Robot Schematics Acquired . | . . . . . Robots Built . | . . . . . Authchips . | . . . . . Time . | . . . . . Total Robot Build Rating . | . . . . . Part Schematics Acquired . | . . . . . Parts Built . | . . . . . Authchips . | . . . . . Time . | . . . . . Total Part Build Rating . | . . . . . Part Studies Acquired . | . . . . . Parts Repaired . | . . . . . Time . | . . . . . Parts Recycled . | . . . . . Recycled Matter . | . . . . . Retrieved Matter . | . . . . . Retrieved Components 8 | . . . . 8 Parts Scanalyzed . | . . . . . Part Schematics Acquired . | . . . . . Parts Damaged . | . . . . . Bothacking | -11 -10 -10 -10 -7 ------------ Run | Yrd Mat Min Sub Rec Used RIF Installer . | . . . . . Robots Hacked . | . . . . . Non-combat . | . . . . . Combat . | . . . . . Robot Hacks Applied . | . . . . . Relay Couplers Released . | . . . . . Fabnet Peak Effective % . | . . . . . Robots Rewired . | . . . . . Allies Hacked . | . . . . . Hacks Repelled . | . . . . . Allies | -11 -10 -10 -10 -7 -------- Run | Yrd Mat Min Sub Rec Total Allies . | . . . . . Largest Group . | . . . . . Highest-Rated Group . | . . . . . Highest-Rated Ally . | . . . . . Total Orders . | . . . . . Ally Attacks . | . . . . . Total Damage . | . . . . . Kills . | . . . . . Allies Corrupted . | . . . . . Allies Melted . | . . . . . Intel | -11 -10 -10 -10 -7 ------- Run | Yrd Mat Min Sub Rec Active Infowar (turns) 395 | . 150 65 45 135 Optics 135 | . . . . 135 Seismic 260 | . 150 65 45 . Robot Analysis Total . | . . . . . Derelict Logs Recovered 2 | . . . 2 . Drone Launches . | . . . . . Drone Recoveries . | . . . . . Exploration | -11 -10 -10 -10 -7 ------------- Run | Yrd Mat Min Sub Rec Turns Passed 3381 | 21 158 65 2453 684 Spaces Moved 1855 | 36 193 129 1181 316 Core 404 | 36 193 129 46 . Treads 72 | . . . 72 . Legs 1379 | . . . 1063 316 Wheels . | . . . . . Hover . | . . . . . Flight . | . . . . . Fastest Speed 50 | 50 50 50 50 190 Average Speed 159 | 50 54 50 182 194 Slowest Speed 260 | 50 100 50 190 260 Overloaded Moves . | . . . . . Propulsion Burnouts . | . . . . . Robots Hopped . | . . . . . Potential Cave-ins . | . . . . . Cave-ins Triggered . | . . . . . Exploration Rate (%) 41 | 3 48 36 55 66 Regions Visited 4 Branch Regions 3 Pre-discovered Areas 5 | . . . 1 4 Known Exits Taken . | . . . . . Unknown Exits Taken 4 | 1 1 1 1 . Scrap Searched . | . . . . . Spaces Dug 26 | . 19 . 7 . Terrain Destroyed 80 | . 36 . 39 5 Melee . | . . . . . Projectile 5 | . . . . 5 AOE 75 | . 36 . 39 . Terrain Rammed . | . . . . . Walls Destroyed . | . . . . . Machines Disabled . | . . . . . Actions | -11 -10 -10 -10 -7 --------- Run | Yrd Mat Min Sub Rec Total 2170 | 37 228 128 1422 355 Wait 189 | . 13 . 176 . Move 1851 | 35 192 128 1180 316 Hop . | . . . . . Pick Up 26 | . 4 . 15 7 Fast Attach 13 | 2 4 . 5 2 Attach 4 | . . . 1 3 Detach 3 | . 1 . 1 1 Swap 9 | . 1 . 6 2 Drop 11 | . 1 . 5 5 Fire 54 | . 12 . 32 10 Melee 8 | . . . . 8 Ram . | . . . . . Kick 1 | . . . . 1 Crush . | . . . . . Escape Stasis . | . . . . . Rewire . | . . . . . Trap 1 | . . . 1 . Miscellaneous . | . . . . . Route ------- -11/Scrapyard -10/Materials (discovered 2 exits: [Mat] / [*Min]) -10/Mines -10/Subcaves (discovered 2 exits: [*Mat] / *Rec) -7/Recycling (discovered 1 exit: [*Fac]) History --------- Turn | Location | Event 12 | -11/Scrapyard | Discovered new exit (range 15) 22 | -11/Scrapyard | Entered Materials 86 | -10/Materials | Discovered new exit (range 11) 171 | -10/Materials | Discovered new exit (range 8) 180 | -10/Materials | Entered Mines 225 | -10/Mines | Assembled infested the area 238 | -10/Mines | Discovered new exit (range 10) 245 | -10/Mines | Entered Subcaves 246 | -10/Subcaves | Approached by a straggling Scientist 248 | -10/Subcaves | Learned location of 1 exit from Materials 324 | -10/Subcaves | Build established: Mutant 441 | -10/Subcaves | Discovered new exit (range 15) 589 | -10/Subcaves | Discovered new exit (range 15) 739 | -10/Subcaves | Build established: Scavenger-Mutant 793 | -10/Subcaves | Shifting Twisted Machinery released Shrapnel Trap 829 | -10/Subcaves | Shifting Twisted Machinery released Sub. Optics 1363 | -10/Subcaves | Learned location of Zion (-6) 1363 | -10/Subcaves | Met a Zionite searching for "candidates" 1369 | -10/Subcaves | Learned Materials interactive machine intel 2698 | -10/Subcaves | Entered Recycling 3183 | -7/Recycling | Core integrity fell below 50% 3219 | -7/Recycling | Discovered new exit (range 16) 3375 | -7/Recycling | Core integrity fell below 20% 3382 | -7/Recycling | Destroyed by Y-54 Guardian with Flak Gun Last Messages --------------- 03242_ Destroyed Com. Wheel. 03242_ R-06 Scavenger destroyed. 03248_ Acquired Bore Cannon. 03250_ R-06 Scavenger collects Sml. Storage Unit. 03251_ Sneak attack on R-06 Scavenger. 03251_ Destroyed Com. Wheel. 03251_ R-06 Scavenger destroyed. 03254_ R-06 Scavenger collects Sml. Storage Unit. 03254_ Acquired 147 matter. 03257_ R-06 Scavenger collects Lgt. Ion Engine. 03266_ Connecting with Terminal... 03311_ Sneak attack on R-06 Scavenger. 03311_ R-06 Scavenger destroyed. 03314_ Acquired 53 matter. 03327_ Sneak attack on R-06 Scavenger. 03330_ R-06 Scavenger destroyed. 03333_ Acquired 92 matter. 03372_ Y-54 Guardian springs to life. 03379_ Greatsword destroyed. 03382_ Myomer Leg destroyed. Map ----- +----------------------------------------------------+ | ?????????????????????????????????????????????????? | | ?????????????????????????????????????????????????? | | ?????????????????????????????????????????????????? | | ?????????????????????????????????????????????????? | | ?????????????????????????????????????????????????? | | ?????????????????????????????????????????????????? | | ?????????????????????????????????????????????????? | | ?????????????????????????????????????????????????? | | ?????????????????????????????????????????????????? | | ?????????????????????????????????????????????????? | | ?????????????????????????????????????????????????? | | ?????????????????????????????????????????????????? | | ?????????????????????????????????????????????????? | | ?????????????????????????????????????????????????? | | ?????????????????????????????????????????????????? | | ?????????????????????????????????????????????????? | | ???????? ??????????????????????????????????????? | | ???????? ?????????????????????????????????????? | | # ????????????????????????????????????? | | ??????????????#+#?????????????????? | | ?????????????# #?????????????????? | | ???????###### ##????????????????? | | ??????# #????????????????? | | ##+##+##?# ????## +????????????????? | | ?????????# ???#Y #????????????????? | | ?????????# ####@ #????????????????? | | ?????????# +????????????????? | | ?????????# #????????????????? | | ?????????# #????????????????? | | ????????+ Y #????????????????? | | ????????## ##### #????????????????? | | ?????????# ???# #????????????????? | | ???????+## ##??#+#########????????? | | ??????# #???# * #????????? | | ??????# ???+ !##????????? | | ??????# ???# #?????????? | | #?????# ???# #?????????? | | ####### ###### ??+ #?????????? | | + !!#??# ??# #?????????? | | #### !!#??# ###### ??# !##????????? | | #??# !!#??# ?????# ?# = #????????? | | #??# ###??#??????# # ##????????? | | #### #??? ]?????# u #+##+##+##?????????? | | ##"" #??= !????### #??????????? | | ##"T ## ! ?????+ #??????????? | | #### + ???????#### #??????????? | | #### #???????????# ####???##### | | + #???????????# +?? | | ###### #???????????## #?? | | #??#%% #????????????# # | +----------------------------------------------------+ Best States ------------- Heat Dissipation 25 Energy Generation 5 Energy Capacity 200 Matter Stores 300 Matter Capacity 300 Sight Range 21 Terrain Scan Density 10 Armor Coverage 800 Evasion (%) 50 Armor Integrity Analysis 30 Recoil Reduction 2 Item Schematics ----------------- None Robot Schematics ------------------ None Fabricated ------------ Nothing Repaired ---------- Nothing Studied --------- None Alien Tech Used ----------------- None Achievements -------------- None Challenges ------------ None Game ------ Seed PlatingClaymoresProjector Manual? 0 Play Time 00:15:20 Cumulative 1156.1 hours Start 2025.12.13 @ 01:44:07 End 2025.12.13 @ 01:59:25 Sessions 1 Manual Loads 0 Difficulty Rogue Special Mode None Game No. 406 Rogue 401 Adventurer 4 Explorer 1 Win Type - Total 24 Types 13/4/1/2/0/1/0/0/2/1 Lore% 97 Gallery% 96 Achievement% 81 Wizard Run 0 Options --------- Layout 0 ASCII 0 Keyboard 0 Movement Numpad Keybinds 0 Fullscreen 2 Font 18/SmallcapsGlow Map View 76x50 Zoom Use 0% Tactical HUD 1 Map Filters NONE Filters NONE Steam 1 RUN: 64fdd797-c6cd-48eb-885c-90456819da0b